{"text_format":"1","workbook":"xlsx","n_sheets":5,"sheets":["Disclaimer","Trade","Posititons","account","config"],"not_rendered":{"charts":0,"images":0,"macros":1,"external_links":0,"defined_names":6,"comments":0,"pivot_tables":0},"unopened":[],"bounds":{"document_bytes":16777216,"sheet_cells":100000,"rows_first":2000,"rows_last":500,"rows_between":2000,"halvings":0,"cell_chars":16384,"cell_head_chars":4096},"cells_cut":0,"cells_raw":0,"read":"whole","date_system":"1900"}

{"sheet":"Disclaimer","index":0,"n_rows":18,"n_cols":2,"rows_kept":18,"cut":false,"hidden":false,"merged":[[1,1,15,3],[17,1,24,3]]}
[]
[null,"Copyright © 2019 Saxo Bank A/S\n\nLicensed under the Apache License, Version 2.0 (the \"License\");\nYou may not use this file except in compliance with the License.\nYou may obtain a copy of the License at\n\nhttp://www.apache.org/licenses/LICENSE-2.0\n\nUnless required by applicable law or agreed to in writing, software\ndistributed under the License is distributed on an \"AS IS\" BASIS,\nWITHOUT WARRANTIES OR CONDITIONS OF ANY KIND, either express or implied.\nSee the License for the specific language governing permissions and limitations under the License."]
[]
[]
[]
[]
[]
[]
[]
[]
[]
[]
[]
[]
[]
[]
[]
[null,"WARNING:\n\nThis tool sends trades AUTOMATICALLY to Saxo's OpenAPI and should only be used for demonstration purposes.\n\nDO NOT USE IN LIVE ENVIRONMENT.\n\n"]

{"sheet":"Trade","index":1,"n_rows":69,"n_cols":7,"rows_kept":69,"cut":false,"hidden":false,"merged":[[0,0,0,2]]}
["OpenAPI Trading Tool"]
[]
["Search keyword","eurusd"]
["AssetType","fxspot"]
["Results shown (max=10)",10]
[]
["Select account:","9073876_AUD"]
["Cash available:",{"$f":"IFERROR(account!I9,\"Please log in.\")","v":95005.47},{"$f":"IFERROR(account!J9,\"\")","v":"AUD"}]
[]
["Symbol","AssetType","Identifier","Description","CurrencyCode","PrimaryListing","Action"]
[{"$f":"_xll.OpenAPIGetAutoResize(\"/openapi/ref/v1/instruments/?$top=\"&top&\"&Keywords=\"&Trade!B3&\"&AssetTypes=\"&Trade!B4&\"\",A10&\",\"&B10&\",\"&C10&\",\"&D10&\",\"&E10&\",\"&F10)","v":"EURUSD"},"FxSpot",21,"Euro/US Dollar","USD"," ",{"$f":"IF(ISNUMBER(C11),\"TRADE\",\"\")","v":"TRADE"}]
[null,null,null,null,null,null,{"$f":"IF(ISNUMBER(C12),\"TRADE\",\"\")","v":""}]
[null,null,null,null,null,null,""]
[null,null,null,null,null,null,""]
[null,null,null,null,null,null,""]
[null,null,null,null,null,null,""]
[null,null,null,null,null,null,""]
[null,null,null,null,null,null,""]
[null,null,null,null,null,null,""]
[null,null,null,null,null,null,""]
[null,null,null,null,null,null,""]
["Trade Messages",null,null,null,null,null,""]
[{"$f":"_xll.OpenAPISubscribe(\"/openapi/trade/v1/messages/subscriptions\",\"\",\"\",\"DateTime,MessageHeader,MessageBody\")","v":"DateTime"},"MessageHeader","MessageBody",null,null,null,""]
[{"$f":"_xll.OpenAPISubscribeRtd(\"ExcelTrader_3cc68f5a-da10-4933-88f8-a89809c7ed33\",\"MessageId\",\"217704568_0\")","v":"18/07/2019 07:38:05"},"Order placed","You placed order to sell  50,000 EURUSD spot @ market D.O.   .\r\nFront office order id: 78364696\r\nAccount: 9073876"]
[{"$f":"_xll.OpenAPISubscribeRtd(\"ExcelTrader_3cc68f5a-da10-4933-88f8-a89809c7ed33\",\"MessageId\",\"0_22212016\")","v":"18/07/2019 07:38:05"},"Trade confirmation","You sold 50,000 EURUSD @ 1.12387 for value date 22-Jul-2019  commission 3 USD\r\nFront office position id: 234410763\r\nAccount: 9073876"]
[{"$f":"_xll.OpenAPISubscribeRtd(\"ExcelTrader_3cc68f5a-da10-4933-88f8-a89809c7ed33\",\"MessageId\",\"0_22215840\")","v":"18/07/2019 12:35:26"},"Trade confirmation","You bought 1,500 EURUSD @ 1.12139 for value date 22-Jul-2019  commission 3 USD\r\nFront office position id: 234419435\r\nAccount: 9073876"]
[{"$f":"_xll.OpenAPISubscribeRtd(\"ExcelTrader_3cc68f5a-da10-4933-88f8-a89809c7ed33\",\"MessageId\",\"217721650_0\")","v":"18/07/2019 12:35:26"},"Order placed","You placed order to buy  1,500 EURUSD spot @ market D.O.   .\r\nFront office order id: 78374617\r\nAccount: 9073876"]
[{"$f":"_xll.OpenAPISubscribeRtd(\"ExcelTrader_3cc68f5a-da10-4933-88f8-a89809c7ed33\",\"MessageId\",\"0_22215844\")","v":"18/07/2019 12:35:35"},"Trade confirmation","You sold 1,500 EURUSD @ 1.12140 for value date 22-Jul-2019  commission 3 USD\r\nFront office position id: 234419443\r\nAccount: 9073876"]
[{"$f":"_xll.OpenAPISubscribeRtd(\"ExcelTrader_3cc68f5a-da10-4933-88f8-a89809c7ed33\",\"MessageId\",\"217721663_0\")","v":"18/07/2019 12:35:35"},"Order placed","You placed order to sell  1,500 EURUSD spot @ market D.O.   .\r\nFront office order id: 78374618\r\nAccount: 9073876"]
[{"$f":"_xll.OpenAPISubscribeRtd(\"ExcelTrader_3cc68f5a-da10-4933-88f8-a89809c7ed33\",\"MessageId\",\"0_22215857\")","v":"18/07/2019 12:37:22"},"Trade confirmation","You sold 100,000 EURDKK @ 7.46727 for value date 22-Jul-2019  commission 37.34 DKK\r\nFront office position id: 234419469\r\nAccount: 9073876"]
[{"$f":"_xll.OpenAPISubscribeRtd(\"ExcelTrader_3cc68f5a-da10-4933-88f8-a89809c7ed33\",\"MessageId\",\"217721754_0\")","v":"18/07/2019 12:37:22"},"Order placed","You placed order to sell  100,000 EURDKK spot @ market D.O.   .\r\nFront office order id: 78374632\r\nAccount: 9073876"]
[{"$f":"_xll.OpenAPISubscribeRtd(\"ExcelTrader_3cc68f5a-da10-4933-88f8-a89809c7ed33\",\"MessageId\",\"0_22215872\")","v":"18/07/2019 12:38:37"},"Trade confirmation","You bought 15,000 EURUSD @ 1.12171 for value date 22-Jul-2019  commission 3 USD\r\nFront office position id: 234419499\r\nAccount: 9073876_USD"]
[{"$f":"_xll.OpenAPISubscribeRtd(\"ExcelTrader_3cc68f5a-da10-4933-88f8-a89809c7ed33\",\"MessageId\",\"217721804_0\")","v":"18/07/2019 12:38:37"},"Order placed","You placed order to buy  15,000 EURUSD spot @ market D.O.   .\r\nFront office order id: 78374644\r\nAccount: 9073876_USD"]
[{"$f":"_xll.OpenAPISubscribeRtd(\"ExcelTrader_3cc68f5a-da10-4933-88f8-a89809c7ed33\",\"MessageId\",\"0_22215874\")","v":"18/07/2019 12:38:44"},"Trade confirmation","You bought 15,000 EURUSD @ 1.12169 for value date 22-Jul-2019  commission 3 USD\r\nFront office position id: 234419503\r\nAccount: 9073876_USD"]
[{"$f":"_xll.OpenAPISubscribeRtd(\"ExcelTrader_3cc68f5a-da10-4933-88f8-a89809c7ed33\",\"MessageId\",\"0_22215875\")","v":"18/07/2019 12:38:47"},"Trade confirmation","You sold 100,000 GBPUSD @ 1.24850 for value date 22-Jul-2019  commission 6.24 USD\r\nFront office position id: 234419505\r\nAccount: 9073876"]
[{"$f":"_xll.OpenAPISubscribeRtd(\"ExcelTrader_3cc68f5a-da10-4933-88f8-a89809c7ed33\",\"MessageId\",\"0_22215876\")","v":"18/07/2019 12:38:50"},"Trade confirmation","You sold 10,000 EURUSD @ 1.12154 for value date 22-Jul-2019  commission 3 USD\r\nFront office position id: 234419507\r\nAccount: 9073876"]
[{"$f":"_xll.OpenAPISubscribeRtd(\"ExcelTrader_3cc68f5a-da10-4933-88f8-a89809c7ed33\",\"MessageId\",\"217721811_0\")","v":"18/07/2019 12:38:44"},"Order placed","You placed order to buy  15,000 EURUSD spot @ market D.O.   .\r\nFront office order id: 78374648\r\nAccount: 9073876_USD"]
[{"$f":"_xll.OpenAPISubscribeRtd(\"ExcelTrader_3cc68f5a-da10-4933-88f8-a89809c7ed33\",\"MessageId\",\"217721813_0\")","v":"18/07/2019 12:38:47"},"Order placed","You placed order to sell  100,000 GBPUSD spot @ market D.O.   .\r\nFront office order id: 78374649\r\nAccount: 9073876"]
[{"$f":"_xll.OpenAPISubscribeRtd(\"ExcelTrader_3cc68f5a-da10-4933-88f8-a89809c7ed33\",\"MessageId\",\"217721815_0\")","v":"18/07/2019 12:38:50"},"Order placed","You placed order to sell  10,000 EURUSD spot @ market D.O.   .\r\nFront office order id: 78374650\r\nAccount: 9073876"]
[{"$f":"_xll.OpenAPISubscribeRtd(\"ExcelTrader_3cc68f5a-da10-4933-88f8-a89809c7ed33\",\"MessageId\",\"0_22215877\")","v":"18/07/2019 12:38:53"},"Trade confirmation","You sold 751 VOD:xlon shares @ 127.06 commission 8 GBP \r\nIn total you receive 946.22 GBP, value date 22-Jul-2019. \r\nFront office position id: 234419509\r\nAccount: 9073876_AUD"]
[{"$f":"_xll.OpenAPISubscribeRtd(\"ExcelTrader_3cc68f5a-da10-4933-88f8-a89809c7ed33\",\"MessageId\",\"0_22215878\")","v":"18/07/2019 12:38:55"},"Trade confirmation","You sold 10,000 EURUSD @ 1.12155 for value date 22-Jul-2019  commission 3 USD\r\nFront office position id: 234419511\r\nAccount: 9073876",null,null,null,""]
[{"$f":"_xll.OpenAPISubscribeRtd(\"ExcelTrader_3cc68f5a-da10-4933-88f8-a89809c7ed33\",\"MessageId\",\"0_22215879\")","v":"18/07/2019 12:38:58"},"Trade confirmation","You sold 100,000 EURUSD @ 1.12145 for value date 22-Jul-2019  commission 5.61 USD\r\nFront office position id: 234419513\r\nAccount: 9073876_USD",null,null,null,""]
[{"$f":"_xll.OpenAPISubscribeRtd(\"ExcelTrader_3cc68f5a-da10-4933-88f8-a89809c7ed33\",\"MessageId\",\"0_22215881\")","v":"18/07/2019 12:39:00"},"Trade confirmation","You sold 1,000,000 EURUSD @ 1.12163 for value date 22-Jul-2019  commission 56.08 USD\r\nFront office position id: 234419517\r\nAccount: 9073876",null,null,null,""]
[{"$f":"_xll.OpenAPISubscribeRtd(\"ExcelTrader_3cc68f5a-da10-4933-88f8-a89809c7ed33\",\"MessageId\",\"217721818_0\")","v":"18/07/2019 12:38:53"},"Order placed","You placed order to sell  751 VOD:xlon shares @ market D.O.   .\r\nFront office order id: 78374651\r\nAccount: 9073876_AUD",null,null,null,""]
[{"$f":"_xll.OpenAPISubscribeRtd(\"ExcelTrader_3cc68f5a-da10-4933-88f8-a89809c7ed33\",\"MessageId\",\"217721820_0\")","v":"18/07/2019 12:38:55"},"Order placed","You placed order to sell  10,000 EURUSD spot @ market D.O.   .\r\nFront office order id: 78374652\r\nAccount: 9073876",null,null,null,""]
[{"$f":"_xll.OpenAPISubscribeRtd(\"ExcelTrader_3cc68f5a-da10-4933-88f8-a89809c7ed33\",\"MessageId\",\"217721823_0\")","v":"18/07/2019 12:38:58"},"Order placed","You placed order to sell  100,000 EURUSD spot @ market D.O.   .\r\nFront office order id: 78374653\r\nAccount: 9073876_USD",null,null,null,""]
[{"$f":"_xll.OpenAPISubscribeRtd(\"ExcelTrader_3cc68f5a-da10-4933-88f8-a89809c7ed33\",\"MessageId\",\"217721827_0\")","v":"18/07/2019 12:39:00"},"Order placed","You placed order to sell  1,000,000 EURUSD spot @ market D.O.   .\r\nFront office order id: 78374655\r\nAccount: 9073876",null,null,null,""]
[{"$f":"_xll.OpenAPISubscribeRtd(\"ExcelTrader_3cc68f5a-da10-4933-88f8-a89809c7ed33\",\"MessageId\",\"0_22215882\")","v":"18/07/2019 12:39:04"},"Trade confirmation","You sold 100,000 EURGBP @ 0.89824 for value date 22-Jul-2019  commission 4.49 GBP\r\nFront office position id: 234419519\r\nAccount: 9073876",null,null,null,""]
[{"$f":"_xll.OpenAPISubscribeRtd(\"ExcelTrader_3cc68f5a-da10-4933-88f8-a89809c7ed33\",\"MessageId\",\"0_22215883\")","v":"18/07/2019 12:39:06"},"Trade confirmation","You bought 15,000 EURUSD @ 1.12182 for value date 22-Jul-2019  commission 3 USD\r\nFront office position id: 234419521\r\nAccount: 9073876_USD",null,null,null,""]
[{"$f":"_xll.OpenAPISubscribeRtd(\"ExcelTrader_3cc68f5a-da10-4933-88f8-a89809c7ed33\",\"MessageId\",\"217721829_0\")","v":"18/07/2019 12:39:04"},"Order placed","You placed order to sell  100,000 EURGBP spot @ market D.O.   .\r\nFront office order id: 78374656\r\nAccount: 9073876",null,null,null,""]
[{"$f":"_xll.OpenAPISubscribeRtd(\"ExcelTrader_3cc68f5a-da10-4933-88f8-a89809c7ed33\",\"MessageId\",\"217721831_0\")","v":"18/07/2019 12:39:06"},"Order placed","You placed order to buy  15,000 EURUSD spot @ market D.O.   .\r\nFront office order id: 78374657\r\nAccount: 9073876_USD",null,null,null,""]
[{"$f":"_xll.OpenAPISubscribeRtd(\"ExcelTrader_3cc68f5a-da10-4933-88f8-a89809c7ed33\",\"MessageId\",\"217722373_0\")","v":"18/07/2019 12:44:36"},"Order placed","You placed order to buy  50,000 EURUSD spot @ market D.O.   .\r\nFront office order id: 78373559\r\nAccount: 9073876_AUD",null,null,null,""]
[{"$f":"_xll.OpenAPISubscribeRtd(\"ExcelTrader_3cc68f5a-da10-4933-88f8-a89809c7ed33\",\"MessageId\",\"0_22215962\")","v":"18/07/2019 12:44:36"},"Trade confirmation","You bought 50,000 EURUSD @ 1.12184 for value date 22-Jul-2019  commission 3 USD\r\nFront office position id: 234419679\r\nAccount: 9073876_AUD",null,null,null,""]
[null,null,null,null,null,null,""]
[null,null,null,null,null,null,""]
[null,null,null,null,null,null,""]
[null,null,null,null,null,null,""]
[null,null,null,null,null,null,""]
[null,null,null,null,null,null,""]
[null,null,null,null,null,null,""]
[null,null,null,null,null,null,""]
[null,null,null,null,null,null,""]
[null,null,null,null,null,null,""]
[null,null,null,null,null,null,""]
[null,null,null,null,null,null,""]
[null,null,null,null,null,null,""]
[null,null,null,null,null,null,""]
[null,null,null,null,null,null,""]
[null,null,null,null,null,null,""]

{"sheet":"Posititons","index":2,"n_rows":1003,"n_cols":11,"rows_kept":1003,"cut":false,"hidden":false,"merged":[[0,0,0,2]]}
["Positions Overview"]
[]
[{"$f":"_xll.OpenAPISubscribe(\"/openapi/port/v1/positions/subscriptions/?$top={$top}\",\"ClientKey:\"&ckey,\"positionbase,displayandformat,positionview\",CONCATENATE(\"PositionBase.AccountId,PositionId,PositionBase.Uic,PositionBase.AssetType,DisplayAndFormat.Symbol,DisplayAndFormat.Description,PositionBase.Amount,PositionView.CurrentPrice,PositionView.ProfitLossOnTr\",\"ade,PositionBase.CanBeClosed\"))","v":"PositionBase.AccountId"},"PositionId","PositionBase.Uic","PositionBase.AssetType","DisplayAndFormat.Symbol","DisplayAndFormat.Description","PositionBase.Amount","PositionView.CurrentPrice","PositionView.ProfitLossOnTrade","PositionBase.CanBeClosed","Action"]
[{"$f":"_xll.OpenAPISubscribeRtd(\"ExcelTrader_90068725-0f7b-424b-be44-8acc182417eb\",\"PositionId\",\"234419521\")","v":"9073876_USD"},"234419521",21,"FxSpot","EURUSD","Euro/US Dollar",15000,1.1347400000000001,193.8,false,{"$f":"IF(J4=TRUE,\"CLOSE\",\"\")","v":""}]
[{"$f":"_xll.OpenAPISubscribeRtd(\"ExcelTrader_90068725-0f7b-424b-be44-8acc182417eb\",\"PositionId\",\"234419519\")","v":"9073876"},"234419519",17,"FxSpot","EURGBP","Euro/British Pound",-100000,0.89676999999999996,147,false,{"$f":"IF(J5=TRUE,\"CLOSE\",\"\")","v":""}]
[{"$f":"_xll.OpenAPISubscribeRtd(\"ExcelTrader_90068725-0f7b-424b-be44-8acc182417eb\",\"PositionId\",\"234419517\")","v":"9073876"},"234419517",21,"FxSpot","EURUSD","Euro/US Dollar",-1000000,1.12368,-2050,false,""]
[{"$f":"_xll.OpenAPISubscribeRtd(\"ExcelTrader_90068725-0f7b-424b-be44-8acc182417eb\",\"PositionId\",\"234419513\")","v":"9073876_USD"},"234419513",21,"FxSpot","EURUSD","Euro/US Dollar",-100000,1.12375,-230,false,""]
[{"$f":"_xll.OpenAPISubscribeRtd(\"ExcelTrader_90068725-0f7b-424b-be44-8acc182417eb\",\"PositionId\",\"234419511\")","v":"9073876"},"234419511",21,"FxSpot","EURUSD","Euro/US Dollar",-10000,1.12355,-20,false,""]
[{"$f":"_xll.OpenAPISubscribeRtd(\"ExcelTrader_90068725-0f7b-424b-be44-8acc182417eb\",\"PositionId\",\"234419509\")","v":"9073876_AUD"},"234419509",899,"Stock","VOD:xlon","Vodafone Group Plc",-751," "," ",false,""]
[{"$f":"_xll.OpenAPISubscribeRtd(\"ExcelTrader_90068725-0f7b-424b-be44-8acc182417eb\",\"PositionId\",\"234419507\")","v":"9073876"},"234419507",21,"FxSpot","EURUSD","Euro/US Dollar",-10000,1.12398,-24.4,false,""]
[{"$f":"_xll.OpenAPISubscribeRtd(\"ExcelTrader_90068725-0f7b-424b-be44-8acc182417eb\",\"PositionId\",\"234419505\")","v":"9073876"},"234419505",31,"FxSpot","GBPUSD","British Pound/US Dollar",-100000,1.2679199999999999,-1942,false,""]
[{"$f":"_xll.OpenAPISubscribeRtd(\"ExcelTrader_90068725-0f7b-424b-be44-8acc182417eb\",\"PositionId\",\"234419503\")","v":"9073876_USD"},"234419503",21,"FxSpot","EURUSD","Euro/US Dollar",15000,1.13473,195.6,false,""]
[{"$f":"_xll.OpenAPISubscribeRtd(\"ExcelTrader_90068725-0f7b-424b-be44-8acc182417eb\",\"PositionId\",\"234419499\")","v":"9073876_USD"},"234419499",21,"FxSpot","EURUSD","Euro/US Dollar",15000,1.1347499999999999,195.6,false,""]
[{"$f":"_xll.OpenAPISubscribeRtd(\"ExcelTrader_90068725-0f7b-424b-be44-8acc182417eb\",\"PositionId\",\"234419469\")","v":"9073876"},"234419469",16,"FxSpot","EURDKK","Euro/Danish Krone",-100000,7.4649000000000001,237,false,""]
[{"$f":"_xll.OpenAPISubscribeRtd(\"ExcelTrader_90068725-0f7b-424b-be44-8acc182417eb\",\"PositionId\",\"234419443\")","v":"9073876"},"234419443",21,"FxSpot","EURUSD","Euro/US Dollar",-1500,1.1213900000000001,0.02,false,""]
[{"$f":"_xll.OpenAPISubscribeRtd(\"ExcelTrader_90068725-0f7b-424b-be44-8acc182417eb\",\"PositionId\",\"234419435\")","v":"9073876"},"234419435",21,"FxSpot","EURUSD","Euro/US Dollar",1500,1.1214,0.02,false,""]
[{"$f":"_xll.OpenAPISubscribeRtd(\"ExcelTrader_90068725-0f7b-424b-be44-8acc182417eb\",\"PositionId\",\"234410763\")","v":"9073876"},"234410763",21,"FxSpot","EURUSD","Euro/US Dollar",-50000,1.12161,113,true,"CLOSE"]
[{"$f":"_xll.OpenAPISubscribeRtd(\"ExcelTrader_90068725-0f7b-424b-be44-8acc182417eb\",\"PositionId\",\"234409991\")","v":"9073876"},"234409991",21,"FxSpot","EURUSD","Euro/US Dollar",1000000,1.1216299999999999,-2050,false,""]
[{"$f":"_xll.OpenAPISubscribeRtd(\"ExcelTrader_90068725-0f7b-424b-be44-8acc182417eb\",\"PositionId\",\"234403877\")","v":"9073876_USD"},"234403877",21,"FxSpot","EURUSD","Euro/US Dollar",100000,1.1214500000000001,-230,false,""]
[{"$f":"_xll.OpenAPISubscribeRtd(\"ExcelTrader_90068725-0f7b-424b-be44-8acc182417eb\",\"PositionId\",\"234211569\")","v":"9073876_AUD"},"234211569",899,"Stock","VOD:xlon","Vodafone Group Plc",751," "," ",false,""]
[{"$f":"_xll.OpenAPISubscribeRtd(\"ExcelTrader_90068725-0f7b-424b-be44-8acc182417eb\",\"PositionId\",\"234211563\")","v":"9073876"},"234211563",899,"Stock","VOD:xlon","Vodafone Group Plc",452," "," ",true,"CLOSE"]
[{"$f":"_xll.OpenAPISubscribeRtd(\"ExcelTrader_90068725-0f7b-424b-be44-8acc182417eb\",\"PositionId\",\"234137933\")","v":"9073876"},"234137933",21,"FxSpot","EURUSD","Euro/US Dollar",10000,1.12157,-20,true,"CLOSE"]
[{"$f":"_xll.OpenAPISubscribeRtd(\"ExcelTrader_90068725-0f7b-424b-be44-8acc182417eb\",\"PositionId\",\"234137911\")","v":"9073876"},"234137911",21,"FxSpot","EURUSD","Euro/US Dollar",10000,1.12157,-19.399999999999999,true,"CLOSE"]
[{"$f":"_xll.OpenAPISubscribeRtd(\"ExcelTrader_90068725-0f7b-424b-be44-8acc182417eb\",\"PositionId\",\"234137871\")","v":"9073876"},"234137871",21,"FxSpot","EURUSD","Euro/US Dollar",10000,1.12155,-20,false,""]
[{"$f":"_xll.OpenAPISubscribeRtd(\"ExcelTrader_90068725-0f7b-424b-be44-8acc182417eb\",\"PositionId\",\"234137817\")","v":"9073876"},"234137817",21,"FxSpot","EURUSD","Euro/US Dollar",10000,1.12157,-21.9,true,"CLOSE"]
[{"$f":"_xll.OpenAPISubscribeRtd(\"ExcelTrader_90068725-0f7b-424b-be44-8acc182417eb\",\"PositionId\",\"234137803\")","v":"9073876"},"234137803",21,"FxSpot","EURUSD","Euro/US Dollar",10000,1.12157,-21.4,true,"CLOSE"]
[{"$f":"_xll.OpenAPISubscribeRtd(\"ExcelTrader_90068725-0f7b-424b-be44-8acc182417eb\",\"PositionId\",\"234137787\")","v":"9073876"},"234137787",21,"FxSpot","EURUSD","Euro/US Dollar",10000,1.12157,-21.5,true,"CLOSE"]
[{"$f":"_xll.OpenAPISubscribeRtd(\"ExcelTrader_90068725-0f7b-424b-be44-8acc182417eb\",\"PositionId\",\"234137749\")","v":"9073876"},"234137749",21,"FxSpot","EURUSD","Euro/US Dollar",10000,1.12157,-21.8,true,"CLOSE"]
[{"$f":"_xll.OpenAPISubscribeRtd(\"ExcelTrader_90068725-0f7b-424b-be44-8acc182417eb\",\"PositionId\",\"234137735\")","v":"9073876"},"234137735",21,"FxSpot","EURUSD","Euro/US Dollar",10000,1.12157,-22.4,true,"CLOSE"]
[{"$f":"_xll.OpenAPISubscribeRtd(\"ExcelTrader_90068725-0f7b-424b-be44-8acc182417eb\",\"PositionId\",\"234137703\")","v":"9073876"},"234137703",21,"FxSpot","EURUSD","Euro/US Dollar",10000,1.12157,-22.5,true,"CLOSE"]
[{"$f":"_xll.OpenAPISubscribeRtd(\"ExcelTrader_90068725-0f7b-424b-be44-8acc182417eb\",\"PositionId\",\"234137667\")","v":"9073876"},"234137667",21,"FxSpot","EURUSD","Euro/US Dollar",10000,1.12157,-24.3,true,"CLOSE"]
[{"$f":"_xll.OpenAPISubscribeRtd(\"ExcelTrader_90068725-0f7b-424b-be44-8acc182417eb\",\"PositionId\",\"234137655\")","v":"9073876"},"234137655",21,"FxSpot","EURUSD","Euro/US Dollar",10000,1.12157,-25.7,true,"CLOSE"]
[{"$f":"_xll.OpenAPISubscribeRtd(\"ExcelTrader_90068725-0f7b-424b-be44-8acc182417eb\",\"PositionId\",\"234137635\")","v":"9073876"},"234137635",21,"FxSpot","EURUSD","Euro/US Dollar",10000,1.12157,-25.1,true,"CLOSE"]
[{"$f":"_xll.OpenAPISubscribeRtd(\"ExcelTrader_90068725-0f7b-424b-be44-8acc182417eb\",\"PositionId\",\"234137499\")","v":"9073876"},"234137499",21,"FxSpot","EURUSD","Euro/US Dollar",10000,1.12157,-25,true,"CLOSE"]
[{"$f":"_xll.OpenAPISubscribeRtd(\"ExcelTrader_90068725-0f7b-424b-be44-8acc182417eb\",\"PositionId\",\"234137481\")","v":"9073876"},"234137481",21,"FxSpot","EURUSD","Euro/US Dollar",10000,1.12157,-25.8,true,"CLOSE"]
[{"$f":"_xll.OpenAPISubscribeRtd(\"ExcelTrader_90068725-0f7b-424b-be44-8acc182417eb\",\"PositionId\",\"234137451\")","v":"9073876"},"234137451",21,"FxSpot","EURUSD","Euro/US Dollar",10000,1.12157,-25.6,true,"CLOSE"]
[{"$f":"_xll.OpenAPISubscribeRtd(\"ExcelTrader_90068725-0f7b-424b-be44-8acc182417eb\",\"PositionId\",\"234137439\")","v":"9073876"},"234137439",21,"FxSpot","EURUSD","Euro/US Dollar",10000,1.12157,-25.3,true,"CLOSE"]
[{"$f":"_xll.OpenAPISubscribeRtd(\"ExcelTrader_90068725-0f7b-424b-be44-8acc182417eb\",\"PositionId\",\"234137195\")","v":"9073876"},"234137195",21,"FxSpot","EURUSD","Euro/US Dollar",10000,1.12154,-24.4,false,""]
[{"$f":"_xll.OpenAPISubscribeRtd(\"ExcelTrader_90068725-0f7b-424b-be44-8acc182417eb\",\"PositionId\",\"234137181\")","v":"9073876"},"234137181",21,"FxSpot","EURUSD","Euro/US Dollar",10000,1.12157,-25.3,true,"CLOSE"]
[{"$f":"_xll.OpenAPISubscribeRtd(\"ExcelTrader_90068725-0f7b-424b-be44-8acc182417eb\",\"PositionId\",\"234032387\")","v":"9073876"},"234032387",37,"FxSpot","NZDUSD","New Zealand Dollar/US Dollar",100000,0.67344999999999999,468,true,"CLOSE"]
[{"$f":"_xll.OpenAPISubscribeRtd(\"ExcelTrader_90068725-0f7b-424b-be44-8acc182417eb\",\"PositionId\",\"234031031\")","v":"9073876"},"234031031",7609,"FxSpot","GBPHUF","British Pound/Hungarian Forint",100000,363.07,182700,true,"CLOSE"]
[{"$f":"_xll.OpenAPISubscribeRtd(\"ExcelTrader_90068725-0f7b-424b-be44-8acc182417eb\",\"PositionId\",\"234027805\")","v":"9073876"},"234027805",1296,"FxSpot","USDZAR","US Dollar/South African Rand",100000,13.98687,-11500,true,"CLOSE"]
[{"$f":"_xll.OpenAPISubscribeRtd(\"ExcelTrader_90068725-0f7b-424b-be44-8acc182417eb\",\"PositionId\",\"234027405\")","v":"9073876"},"234027405",17,"FxSpot","EURGBP","Euro/British Pound",100000,0.89824000000000004,147,false,""]
[{"$f":"_xll.OpenAPISubscribeRtd(\"ExcelTrader_90068725-0f7b-424b-be44-8acc182417eb\",\"PositionId\",\"234027263\")","v":"9073876"},"234027263",2071,"FxSpot","EURHUF","Euro/Hungarian Forint",100000,326.37,239300,true,"CLOSE"]
[{"$f":"_xll.OpenAPISubscribeRtd(\"ExcelTrader_90068725-0f7b-424b-be44-8acc182417eb\",\"PositionId\",\"234026829\")","v":"9073876"},"234026829",17,"FxSpot","EURGBP","Euro/British Pound",100000,0.89878000000000002,191,true,"CLOSE"]
[{"$f":"_xll.OpenAPISubscribeRtd(\"ExcelTrader_90068725-0f7b-424b-be44-8acc182417eb\",\"PositionId\",\"234026805\")","v":"9073876"},"234026805",31,"FxSpot","GBPUSD","British Pound/US Dollar",100000,1.2484999999999999,-1942,false,""]
[{"$f":"_xll.OpenAPISubscribeRtd(\"ExcelTrader_90068725-0f7b-424b-be44-8acc182417eb\",\"PositionId\",\"234026217\")","v":"9073876"},"234026217",16,"FxSpot","EURDKK","Euro/Danish Krone",100000,7.4672700000000001,208,true,"CLOSE"]
[{"$f":"_xll.OpenAPISubscribeRtd(\"ExcelTrader_90068725-0f7b-424b-be44-8acc182417eb\",\"PositionId\",\"234025725\")","v":"9073876"},"234025725",42,"FxSpot","USDJPY","US Dollar/Japanese Yen",100000,107.949,-22600,true,"CLOSE"]
[{"$f":"_xll.OpenAPISubscribeRtd(\"ExcelTrader_90068725-0f7b-424b-be44-8acc182417eb\",\"PositionId\",\"234025641\")","v":"9073876"},"234025641",2071,"FxSpot","EURHUF","Euro/Hungarian Forint",100000,326.37,252300,true,"CLOSE"]
[{"$f":"_xll.OpenAPISubscribeRtd(\"ExcelTrader_90068725-0f7b-424b-be44-8acc182417eb\",\"PositionId\",\"234025615\")","v":"9073876"},"234025615",18,"FxSpot","EURJPY","Euro/Japanese Yen",100000,121.07299999999999,-186000,true,"CLOSE"]
[{"$f":"_xll.OpenAPISubscribeRtd(\"ExcelTrader_90068725-0f7b-424b-be44-8acc182417eb\",\"PositionId\",\"234025399\")","v":"9073876"},"234025399",16,"FxSpot","EURDKK","Euro/Danish Krone",100000,7.4672700000000001,228,true,"CLOSE"]
[{"$f":"_xll.OpenAPISubscribeRtd(\"ExcelTrader_90068725-0f7b-424b-be44-8acc182417eb\",\"PositionId\",\"234001145\")","v":"9073876"},"234001145",17,"FxSpot","EURGBP","Euro/British Pound",1000000,0.89878000000000002,2130,true,"CLOSE"]
[{"$f":"_xll.OpenAPISubscribeRtd(\"ExcelTrader_90068725-0f7b-424b-be44-8acc182417eb\",\"PositionId\",\"234000925\")","v":"9073876"},"234000925",17,"FxSpot","EURGBP","Euro/British Pound",1000000,0.89878000000000002,2140,true,"CLOSE"]
[{"$f":"_xll.OpenAPISubscribeRtd(\"ExcelTrader_90068725-0f7b-424b-be44-8acc182417eb\",\"PositionId\",\"234000917\")","v":"9073876"},"234000917",17,"FxSpot","EURGBP","Euro/British Pound",4222,0.89878000000000002,9.2899999999999991,true,"CLOSE"]
[{"$f":"_xll.OpenAPISubscribeRtd(\"ExcelTrader_90068725-0f7b-424b-be44-8acc182417eb\",\"PositionId\",\"233738327\")","v":"9073876"},"233738327",16,"FxSpot","EURDKK","Euro/Danish Krone",100000,7.4672700000000001,237,false,""]
[{"$f":"_xll.OpenAPISubscribeRtd(\"ExcelTrader_90068725-0f7b-424b-be44-8acc182417eb\",\"PositionId\",\"232007701\")","v":"9073876"},"232007701",211,"Stock","AAPL:xnas","Apple Inc.",50," "," ",true,"CLOSE"]
[{"$f":"_xll.OpenAPISubscribeRtd(\"ExcelTrader_90068725-0f7b-424b-be44-8acc182417eb\",\"PositionId\",\"231831127\")","v":"9073876_USD"},"231831127",4,"FxSpot","AUDUSD","Australian Dollar/US Dollar",350000,0.70331999999999995,1813,true,"CLOSE"]
[{"$f":"_xll.OpenAPISubscribeRtd(\"ExcelTrader_90068725-0f7b-424b-be44-8acc182417eb\",\"PositionId\",\"231831123\")","v":"9073876_USD"},"231831123",4,"FxSpot","AUDUSD","Australian Dollar/US Dollar",350000,0.70331999999999995,1813,true,"CLOSE"]
[{"$f":"_xll.OpenAPISubscribeRtd(\"ExcelTrader_90068725-0f7b-424b-be44-8acc182417eb\",\"PositionId\",\"229980741\")","v":"9073876_USD"},"229980741",21,"FxSpot","EURUSD","Euro/US Dollar",-15000,1.12174,194.85,true,"CLOSE"]
[{"$f":"_xll.OpenAPISubscribeRtd(\"ExcelTrader_90068725-0f7b-424b-be44-8acc182417eb\",\"PositionId\",\"229980737\")","v":"9073876_USD"},"229980737",21,"FxSpot","EURUSD","Euro/US Dollar",-15000,1.12182,193.8,false,""]
[{"$f":"_xll.OpenAPISubscribeRtd(\"ExcelTrader_90068725-0f7b-424b-be44-8acc182417eb\",\"PositionId\",\"229980735\")","v":"9073876_USD"},"229980735",21,"FxSpot","EURUSD","Euro/US Dollar",-15000,1.12174,195,true,"CLOSE"]
[{"$f":"_xll.OpenAPISubscribeRtd(\"ExcelTrader_90068725-0f7b-424b-be44-8acc182417eb\",\"PositionId\",\"229980733\")","v":"9073876_USD"},"229980733",21,"FxSpot","EURUSD","Euro/US Dollar",-15000,1.12174,195,true,"CLOSE"]
[{"$f":"_xll.OpenAPISubscribeRtd(\"ExcelTrader_90068725-0f7b-424b-be44-8acc182417eb\",\"PositionId\",\"229980731\")","v":"9073876_USD"},"229980731",21,"FxSpot","EURUSD","Euro/US Dollar",-15000,1.12174,195.15,true,"CLOSE"]
[{"$f":"_xll.OpenAPISubscribeRtd(\"ExcelTrader_90068725-0f7b-424b-be44-8acc182417eb\",\"PositionId\",\"229980729\")","v":"9073876_USD"},"229980729",21,"FxSpot","EURUSD","Euro/US Dollar",-15000,1.12171,195.6,false,""]
[{"$f":"_xll.OpenAPISubscribeRtd(\"ExcelTrader_90068725-0f7b-424b-be44-8acc182417eb\",\"PositionId\",\"229980727\")","v":"9073876_USD"},"229980727",21,"FxSpot","EURUSD","Euro/US Dollar",-15000,1.1216900000000001,195.6,false,""]
[{"$f":"_xll.OpenAPISubscribeRtd(\"ExcelTrader_90068725-0f7b-424b-be44-8acc182417eb\",\"PositionId\",\"229980725\")","v":"9073876_USD"},"229980725",21,"FxSpot","EURUSD","Euro/US Dollar",-15000,1.12174,195.15,true,"CLOSE"]
[{"$f":"_xll.OpenAPISubscribeRtd(\"ExcelTrader_90068725-0f7b-424b-be44-8acc182417eb\",\"PositionId\",\"229980723\")","v":"9073876_USD"},"229980723",21,"FxSpot","EURUSD","Euro/US Dollar",-15000,1.12174,195.15,true,"CLOSE"]
[{"$f":"_xll.OpenAPISubscribeRtd(\"ExcelTrader_90068725-0f7b-424b-be44-8acc182417eb\",\"PositionId\",\"228500689\")","v":"9073876"},"228500689",3940,"FxSpot","JPYEUR","Japanese Yen/Euro",150000,8.2567999999999999E-3,7,true,"CLOSE"]
[{"$f":"_xll.OpenAPISubscribeRtd(\"ExcelTrader_90068725-0f7b-424b-be44-8acc182417eb\",\"PositionId\",\"234419679\")","v":"9073876_AUD"},"234419679",21,"FxSpot","EURUSD","Euro/US Dollar",50000,1.12144,-20,true,{"$f":"IF(J69=TRUE,\"CLOSE\",\"\")","v":"CLOSE"}]
[null,null,null,null,null,null,null,null,null,null,""]
[null,null,null,null,null,null,null,null,null,null,""]
[null,null,null,null,null,null,null,null,null,null,""]
[null,null,null,null,null,null,null,null,null,null,""]
[null,null,null,null,null,null,null,null,null,null,""]
[null,null,null,null,null,null,null,null,null,null,""]
[null,null,null,null,null,null,null,null,null,null,""]
[null,null,null,null,null,null,null,null,null,null,""]
[null,null,null,null,null,null,null,null,null,null,""]
[null,null,null,null,null,null,null,null,null,null,""]
[null,null,null,null,null,null,null,null,null,null,""]
[null,null,null,null,null,null,null,null,null,null,""]
[null,null,null,null,null,null,null,null,null,null,""]
[null,null,null,null,null,null,null,null,null,null,""]
[null,null,null,null,null,null,null,null,null,null,""]
[null,null,null,null,null,null,null,null,null,null,""]
[null,null,null,null,null,null,null,null,null,null,""]
[null,null,null,null,null,null,null,null,null,null,""]
[null,null,null,null,null,null,null,null,null,null,""]
[null,null,null,null,null,null,null,null,null,null,""]
[null,null,null,null,null,null,null,null,null,null,""]
[null,null,null,null,null,null,null,null,null,null,""]
[null,null,null,null,null,null,null,null,null,null,""]
[null,null,null,null,null,null,null,null,null,null,""]
[null,null,null,null,null,null,null,null,null,null,""]
[null,null,null,null,null,null,null,null,null,null,""]
[null,null,null,null,null,null,null,null,null,null,""]
[null,null,null,null,null,null,null,null,null,null,""]
[null,null,null,null,null,null,null,null,null,null,""]
[null,null,null,null,null,null,null,null,null,null,""]
[null,null,null,null,null,null,null,null,null,null,""]
[null,null,null,null,null,null,null,null,null,null,""]
[null,null,null,null,null,null,null,null,null,null,""]
[null,null,null,null,null,null,null,null,null,null,""]
[null,null,null,null,null,null,null,null,null,null,""]
[null,null,null,null,null,null,null,null,null,null,""]
[null,null,null,null,null,null,null,null,null,null,""]
[null,null,null,null,null,null,null,null,null,null,""]
[null,null,null,null,null,null,null,null,null,null,""]
[null,null,null,null,null,null,null,null,null,null,""]
[null,null,null,null,null,null,null,null,null,null,""]
[null,null,null,null,null,null,null,null,null,null,""]
[null,null,null,null,null,null,null,null,null,null,""]
[null,null,null,null,null,null,null,null,null,null,""]
[null,null,null,null,null,null,null,null,null,null,""]
[null,null,null,null,null,null,null,null,null,null,""]
[null,null,null,null,null,null,null,null,null,null,""]
[null,null,null,null,null,null,null,null,null,null,""]
[null,null,null,null,null,null,null,null,null,null,""]
[null,null,null,null,null,null,null,null,null,null,""]
[null,null,null,null,null,null,null,null,null,null,""]
[null,null,null,null,null,null,null,null,null,null,""]
[null,null,null,null,null,null,null,null,null,null,""]
[null,null,null,null,null,null,null,null,null,null,""]
[null,null,null,null,null,null,null,null,null,null,""]
[null,null,null,null,null,null,null,null,null,null,""]
[null,null,null,null,null,null,null,null,null,null,""]
[null,null,null,null,null,null,null,null,null,null,""]
[null,null,null,null,null,null,null,null,null,null,""]
[null,null,null,null,null,null,null,null,null,null,""]
[null,null,null,null,null,null,null,null,null,null,""]
[null,null,null,null,null,null,null,null,null,null,""]
[null,null,null,null,null,null,null,null,null,null,""]
[null,null,null,null,null,null,null,null,null,null,{"$f":"IF(J133=TRUE,\"CLOSE\",\"\")","v":""}]
[null,null,null,null,null,null,null,null,null,null,""]
[null,null,null,null,null,null,null,null,null,null,""]
[null,null,null,null,null,null,null,null,null,null,""]
[null,null,null,null,null,null,null,null,null,null,""]
[null,null,null,null,null,null,null,null,null,null,""]
[null,null,null,null,null,null,null,null,null,null,""]
[null,null,null,null,null,null,null,null,null,null,""]
[null,null,null,null,null,null,null,null,null,null,""]
[null,null,null,null,null,null,null,null,null,null,""]
[null,null,null,null,null,null,null,null,null,null,""]
[null,null,null,null,null,null,null,null,null,null,""]
[null,null,null,null,null,null,null,null,null,null,""]
[null,null,null,null,null,null,null,null,null,null,""]
[null,null,null,null,null,null,null,null,null,null,""]
[null,null,null,null,null,null,null,null,null,null,""]
[null,null,null,null,null,null,null,null,null,null,""]
[null,null,null,null,null,null,null,null,null,null,""]
[null,null,null,null,null,null,null,null,null,null,""]
[null,null,null,null,null,null,null,null,null,null,""]
[null,null,null,null,null,null,null,null,null,null,""]
[null,null,null,null,null,null,null,null,null,null,""]
[null,null,null,null,null,null,null,null,null,null,""]
[null,null,null,null,null,null,null,null,null,null,""]
[null,null,null,null,null,null,null,null,null,null,""]
[null,null,null,null,null,null,null,null,null,null,""]
[null,null,null,null,null,null,null,null,null,null,""]
[null,null,null,null,null,null,null,null,null,null,""]
[null,null,null,null,null,null,null,null,null,null,""]
[null,null,null,null,null,null,null,null,null,null,""]
[null,null,null,null,null,null,null,null,null,null,""]
[null,null,null,null,null,null,null,null,null,null,""]
[null,null,null,null,null,null,null,null,null,null,""]
[null,null,null,null,null,null,null,null,null,null,""]
[null,null,null,null,null,null,null,null,null,null,""]
[null,null,null,null,null,null,null,null,null,null,""]
[null,null,null,null,null,null,null,null,null,null,""]
[null,null,null,null,null,null,null,null,null,null,""]
[null,null,null,null,null,null,null,null,null,null,""]
[null,null,null,null,null,null,null,null,null,null,""]
[null,null,null,null,null,null,null,null,null,null,""]
[null,null,null,null,null,null,null,null,null,null,""]
[null,null,null,null,null,null,null,null,null,null,""]
[null,null,null,null,null,null,null,null,null,null,""]
[null,null,null,null,null,null,null,null,null,null,""]
[null,null,null,null,null,null,null,null,null,null,""]
[null,null,null,null,null,null,null,null,null,null,""]
[null,null,null,null,null,null,null,null,null,null,""]
[null,null,null,null,null,null,null,null,null,null,""]
[null,null,null,null,null,null,null,null,null,null,""]
[null,null,null,null,null,null,null,null,null,null,""]
[null,null,null,null,null,null,null,null,null,null,""]
[null,null,null,null,null,null,null,null,null,null,""]
[null,null,null,null,null,null,null,null,null,null,""]
[null,null,null,null,null,null,null,null,null,null,""]
[null,null,null,null,null,null,null,null,null,null,""]
[null,null,null,null,null,null,null,null,null,null,""]
[null,null,null,null,null,null,null,null,null,null,""]
[null,null,null,null,null,null,null,null,null,null,""]
[null,null,null,null,null,null,null,null,null,null,""]
[null,null,null,null,null,null,null,null,null,null,""]
[null,null,null,null,null,null,null,null,null,null,""]
[null,null,null,null,null,null,null,null,null,null,""]
[null,null,null,null,null,null,null,null,null,null,""]
[null,null,null,null,null,null,null,null,null,null,{"$f":"IF(J197=TRUE,\"CLOSE\",\"\")","v":""}]
[null,null,null,null,null,null,null,null,null,null,""]
[null,null,null,null,null,null,null,null,null,null,""]
[null,null,null,null,null,null,null,null,null,null,""]
[null,null,null,null,null,null,null,null,null,null,""]
[null,null,null,null,null,null,null,null,null,null,""]
[null,null,null,null,null,null,null,null,null,null,""]
[null,null,null,null,null,null,null,null,null,null,""]
[null,null,null,null,null,null,null,null,null,null,""]
[null,null,null,null,null,null,null,null,null,null,""]
[null,null,null,null,null,null,null,null,null,null,""]
[null,null,null,null,null,null,null,null,null,null,""]
[null,null,null,null,null,null,null,null,null,null,""]
[null,null,null,null,null,null,null,null,null,null,""]
[null,null,null,null,null,null,null,null,null,null,""]
[null,null,null,null,null,null,null,null,null,null,""]
[null,null,null,null,null,null,null,null,null,null,""]
[null,null,null,null,null,null,null,null,null,null,""]
[null,null,null,null,null,null,null,null,null,null,""]
[null,null,null,null,null,null,null,null,null,null,""]
[null,null,null,null,null,null,null,null,null,null,""]
[null,null,null,null,null,null,null,null,null,null,""]
[null,null,null,null,null,null,null,null,null,null,""]
[null,null,null,null,null,null,null,null,null,null,""]
[null,null,null,null,null,null,null,null,null,null,""]
[null,null,null,null,null,null,null,null,null,null,""]
[null,null,null,null,null,null,null,null,null,null,""]
[null,null,null,null,null,null,null,null,null,null,""]
[null,null,null,null,null,null,null,null,null,null,""]
[null,null,null,null,null,null,null,null,null,null,""]
[null,null,null,null,null,null,null,null,null,null,""]
[null,null,null,null,null,null,null,null,null,null,""]
[null,null,null,null,null,null,null,null,null,null,""]
[null,null,null,null,null,null,null,null,null,null,""]
[null,null,null,null,null,null,null,null,null,null,""]
[null,null,null,null,null,null,null,null,null,null,""]
[null,null,null,null,null,null,null,null,null,null,""]
[null,null,null,null,null,null,null,null,null,null,""]
[null,null,null,null,null,null,null,null,null,null,""]
[null,null,null,null,null,null,null,null,null,null,""]
[null,null,null,null,null,null,null,null,null,null,""]
[null,null,null,null,null,null,null,null,null,null,""]
[null,null,null,null,null,null,null,null,null,null,""]
[null,null,null,null,null,null,null,null,null,null,""]
[null,null,null,null,null,null,null,null,null,null,""]
[null,null,null,null,null,null,null,null,null,null,""]
[null,null,null,null,null,null,null,null,null,null,""]
[null,null,null,null,null,null,null,null,null,null,""]
[null,null,null,null,null,null,null,null,null,null,""]
[null,null,null,null,null,null,null,null,null,null,""]
[null,null,null,null,null,null,null,null,null,null,""]
[null,null,null,null,null,null,null,null,null,null,""]
[null,null,null,null,null,null,null,null,null,null,""]
[null,null,null,null,null,null,null,null,null,null,""]
[null,null,null,null,null,null,null,null,null,null,""]
[null,null,null,null,null,null,null,null,null,null,""]
[null,null,null,null,null,null,null,null,null,null,""]
[null,null,null,null,null,null,null,null,null,null,""]
[null,null,null,null,null,null,null,null,null,null,""]
[null,null,null,null,null,null,null,null,null,null,""]
[null,null,null,null,null,null,null,null,null,null,""]
[null,null,null,null,null,null,null,null,null,null,""]
[null,null,null,null,null,null,null,null,null,null,""]
[null,null,null,null,null,null,null,null,null,null,""]
[null,null,null,null,null,null,null,null,null,null,{"$f":"IF(J261=TRUE,\"CLOSE\",\"\")","v":""}]
[null,null,null,null,null,null,null,null,null,null,""]
[null,null,null,null,null,null,null,null,null,null,""]
[null,null,null,null,null,null,null,null,null,null,""]
[null,null,null,null,null,null,null,null,null,null,""]
[null,null,null,null,null,null,null,null,null,null,""]
[null,null,null,null,null,null,null,null,null,null,""]
[null,null,null,null,null,null,null,null,null,null,""]
[null,null,null,null,null,null,null,null,null,null,""]
[null,null,null,null,null,null,null,null,null,null,""]
[null,null,null,null,null,null,null,null,null,null,""]
[null,null,null,null,null,null,null,null,null,null,""]
[null,null,null,null,null,null,null,null,null,null,""]
[null,null,null,null,null,null,null,null,null,null,""]
[null,null,null,null,null,null,null,null,null,null,""]
[null,null,null,null,null,null,null,null,null,null,""]
[null,null,null,null,null,null,null,null,null,null,""]
[null,null,null,null,null,null,null,null,null,null,""]
[null,null,null,null,null,null,null,null,null,null,""]
[null,null,null,null,null,null,null,null,null,null,""]
[null,null,null,null,null,null,null,null,null,null,""]
[null,null,null,null,null,null,null,null,null,null,""]
[null,null,null,null,null,null,null,null,null,null,""]
[null,null,null,null,null,null,null,null,null,null,""]
[null,null,null,null,null,null,null,null,null,null,""]
[null,null,null,null,null,null,null,null,null,null,""]
[null,null,null,null,null,null,null,null,null,null,""]
[null,null,null,null,null,null,null,null,null,null,""]
[null,null,null,null,null,null,null,null,null,null,""]
[null,null,null,null,null,null,null,null,null,null,""]
[null,null,null,null,null,null,null,null,null,null,""]
[null,null,null,null,null,null,null,null,null,null,""]
[null,null,null,null,null,null,null,null,null,null,""]
[null,null,null,null,null,null,null,null,null,null,""]
[null,null,null,null,null,null,null,null,null,null,""]
[null,null,null,null,null,null,null,null,null,null,""]
[null,null,null,null,null,null,null,null,null,null,""]
[null,null,null,null,null,null,null,null,null,null,""]
[null,null,null,null,null,null,null,null,null,null,""]
[null,null,null,null,null,null,null,null,null,null,""]
[null,null,null,null,null,null,null,null,null,null,""]
[null,null,null,null,null,null,null,null,null,null,""]
[null,null,null,null,null,null,null,null,null,null,""]
[null,null,null,null,null,null,null,null,null,null,""]
[null,null,null,null,null,null,null,null,null,null,""]
[null,null,null,null,null,null,null,null,null,null,""]
[null,null,null,null,null,null,null,null,null,null,""]
[null,null,null,null,null,null,null,null,null,null,""]
[null,null,null,null,null,null,null,null,null,null,""]
[null,null,null,null,null,null,null,null,null,null,""]
[null,null,null,null,null,null,null,null,null,null,""]
[null,null,null,null,null,null,null,null,null,null,""]
[null,null,null,null,null,null,null,null,null,null,""]
[null,null,null,null,null,null,null,null,null,null,""]
[null,null,null,null,null,null,null,null,null,null,""]
[null,null,null,null,null,null,null,null,null,null,""]
[null,null,null,null,null,null,null,null,null,null,""]
[null,null,null,null,null,null,null,null,null,null,""]
[null,null,null,null,null,null,null,null,null,null,""]
[null,null,null,null,null,null,null,null,null,null,""]
[null,null,null,null,null,null,null,null,null,null,""]
[null,null,null,null,null,null,null,null,null,null,""]
[null,null,null,null,null,null,null,null,null,null,""]
[null,null,null,null,null,null,null,null,null,null,""]
[null,null,null,null,null,null,null,null,null,null,{"$f":"IF(J325=TRUE,\"CLOSE\",\"\")","v":""}]
[null,null,null,null,null,null,null,null,null,null,""]
[null,null,null,null,null,null,null,null,null,null,""]
[null,null,null,null,null,null,null,null,null,null,""]
[null,null,null,null,null,null,null,null,null,null,""]
[null,null,null,null,null,null,null,null,null,null,""]
[null,null,null,null,null,null,null,null,null,null,""]
[null,null,null,null,null,null,null,null,null,null,""]
[null,null,null,null,null,null,null,null,null,null,""]
[null,null,null,null,null,null,null,null,null,null,""]
[null,null,null,null,null,null,null,null,null,null,""]
[null,null,null,null,null,null,null,null,null,null,""]
[null,null,null,null,null,null,null,null,null,null,""]
[null,null,null,null,null,null,null,null,null,null,""]
[null,null,null,null,null,null,null,null,null,null,""]
[null,null,null,null,null,null,null,null,null,null,""]
[null,null,null,null,null,null,null,null,null,null,""]
[null,null,null,null,null,null,null,null,null,null,""]
[null,null,null,null,null,null,null,null,null,null,""]
[null,null,null,null,null,null,null,null,null,null,""]
[null,null,null,null,null,null,null,null,null,null,""]
[null,null,null,null,null,null,null,null,null,null,""]
[null,null,null,null,null,null,null,null,null,null,""]
[null,null,null,null,null,null,null,null,null,null,""]
[null,null,null,null,null,null,null,null,null,null,""]
[null,null,null,null,null,null,null,null,null,null,""]
[null,null,null,null,null,null,null,null,null,null,""]
[null,null,null,null,null,null,null,null,null,null,""]
[null,null,null,null,null,null,null,null,null,null,""]
[null,null,null,null,null,null,null,null,null,null,""]
[null,null,null,null,null,null,null,null,null,null,""]
[null,null,null,null,null,null,null,null,null,null,""]
[null,null,null,null,null,null,null,null,null,null,""]
[null,null,null,null,null,null,null,null,null,null,""]
[null,null,null,null,null,null,null,null,null,null,""]
[null,null,null,null,null,null,null,null,null,null,""]
[null,null,null,null,null,null,null,null,null,null,""]
[null,null,null,null,null,null,null,null,null,null,""]
[null,null,null,null,null,null,null,null,null,null,""]
[null,null,null,null,null,null,null,null,null,null,""]
[null,null,null,null,null,null,null,null,null,null,""]
[null,null,null,null,null,null,null,null,null,null,""]
[null,null,null,null,null,null,null,null,null,null,""]
[null,null,null,null,null,null,null,null,null,null,""]
[null,null,null,null,null,null,null,null,null,null,""]
[null,null,null,null,null,null,null,null,null,null,""]
[null,null,null,null,null,null,null,null,null,null,""]
[null,null,null,null,null,null,null,null,null,null,""]
[null,null,null,null,null,null,null,null,null,null,""]
[null,null,null,null,null,null,null,null,null,null,""]
[null,null,null,null,null,null,null,null,null,null,""]
[null,null,null,null,null,null,null,null,null,null,""]
[null,null,null,null,null,null,null,null,null,null,""]
[null,null,null,null,null,null,null,null,null,null,""]
[null,null,null,null,null,null,null,null,null,null,""]
[null,null,null,null,null,null,null,null,null,null,""]
[null,null,null,null,null,null,null,null,null,null,""]
[null,null,null,null,null,null,null,null,null,null,""]
[null,null,null,null,null,null,null,null,null,null,""]
[null,null,null,null,null,null,null,null,null,null,""]
[null,null,null,null,null,null,null,null,null,null,""]
[null,null,null,null,null,null,null,null,null,null,""]
[null,null,null,null,null,null,null,null,null,null,""]
[null,null,null,null,null,null,null,null,null,null,""]
[null,null,null,null,null,null,null,null,null,null,{"$f":"IF(J389=TRUE,\"CLOSE\",\"\")","v":""}]
[null,null,null,null,null,null,null,null,null,null,""]
[null,null,null,null,null,null,null,null,null,null,""]
[null,null,null,null,null,null,null,null,null,null,""]
[null,null,null,null,null,null,null,null,null,null,""]
[null,null,null,null,null,null,null,null,null,null,""]
[null,null,null,null,null,null,null,null,null,null,""]
[null,null,null,null,null,null,null,null,null,null,""]
[null,null,null,null,null,null,null,null,null,null,""]
[null,null,null,null,null,null,null,null,null,null,""]
[null,null,null,null,null,null,null,null,null,null,""]
[null,null,null,null,null,null,null,null,null,null,""]
[null,null,null,null,null,null,null,null,null,null,""]
[null,null,null,null,null,null,null,null,null,null,""]
[null,null,null,null,null,null,null,null,null,null,""]
[null,null,null,null,null,null,null,null,null,null,""]
[null,null,null,null,null,null,null,null,null,null,""]
[null,null,null,null,null,null,null,null,null,null,""]
[null,null,null,null,null,null,null,null,null,null,""]
[null,null,null,null,null,null,null,null,null,null,""]
[null,null,null,null,null,null,null,null,null,null,""]
[null,null,null,null,null,null,null,null,null,null,""]
[null,null,null,null,null,null,null,null,null,null,""]
[null,null,null,null,null,null,null,null,null,null,""]
[null,null,null,null,null,null,null,null,null,null,""]
[null,null,null,null,null,null,null,null,null,null,""]
[null,null,null,null,null,null,null,null,null,null,""]
[null,null,null,null,null,null,null,null,null,null,""]
[null,null,null,null,null,null,null,null,null,null,""]
[null,null,null,null,null,null,null,null,null,null,""]
[null,null,null,null,null,null,null,null,null,null,""]
[null,null,null,null,null,null,null,null,null,null,""]
[null,null,null,null,null,null,null,null,null,null,""]
[null,null,null,null,null,null,null,null,null,null,""]
[null,null,null,null,null,null,null,null,null,null,""]
[null,null,null,null,null,null,null,null,null,null,""]
[null,null,null,null,null,null,null,null,null,null,""]
[null,null,null,null,null,null,null,null,null,null,""]
[null,null,null,null,null,null,null,null,null,null,""]
[null,null,null,null,null,null,null,null,null,null,""]
[null,null,null,null,null,null,null,null,null,null,""]
[null,null,null,null,null,null,null,null,null,null,""]
[null,null,null,null,null,null,null,null,null,null,""]
[null,null,null,null,null,null,null,null,null,null,""]
[null,null,null,null,null,null,null,null,null,null,""]
[null,null,null,null,null,null,null,null,null,null,""]
[null,null,null,null,null,null,null,null,null,null,""]
[null,null,null,null,null,null,null,null,null,null,""]
[null,null,null,null,null,null,null,null,null,null,""]
[null,null,null,null,null,null,null,null,null,null,""]
[null,null,null,null,null,null,null,null,null,null,""]
[null,null,null,null,null,null,null,null,null,null,""]
[null,null,null,null,null,null,null,null,null,null,""]
[null,null,null,null,null,null,null,null,null,null,""]
[null,null,null,null,null,null,null,null,null,null,""]
[null,null,null,null,null,null,null,null,null,null,""]
[null,null,null,null,null,null,null,null,null,null,""]
[null,null,null,null,null,null,null,null,null,null,""]
[null,null,null,null,null,null,null,null,null,null,""]
[null,null,null,null,null,null,null,null,null,null,""]
[null,null,null,null,null,null,null,null,null,null,""]
[null,null,null,null,null,null,null,null,null,null,""]
[null,null,null,null,null,null,null,null,null,null,""]
[null,null,null,null,null,null,null,null,null,null,""]
[null,null,null,null,null,null,null,null,null,null,{"$f":"IF(J453=TRUE,\"CLOSE\",\"\")","v":""}]
[null,null,null,null,null,null,null,null,null,null,""]
[null,null,null,null,null,null,null,null,null,null,""]
[null,null,null,null,null,null,null,null,null,null,""]
[null,null,null,null,null,null,null,null,null,null,""]
[null,null,null,null,null,null,null,null,null,null,""]
[null,null,null,null,null,null,null,null,null,null,""]
[null,null,null,null,null,null,null,null,null,null,""]
[null,null,null,null,null,null,null,null,null,null,""]
[null,null,null,null,null,null,null,null,null,null,""]
[null,null,null,null,null,null,null,null,null,null,""]
[null,null,null,null,null,null,null,null,null,null,""]
[null,null,null,null,null,null,null,null,null,null,""]
[null,null,null,null,null,null,null,null,null,null,""]
[null,null,null,null,null,null,null,null,null,null,""]
[null,null,null,null,null,null,null,null,null,null,""]
[null,null,null,null,null,null,null,null,null,null,""]
[null,null,null,null,null,null,null,null,null,null,""]
[null,null,null,null,null,null,null,null,null,null,""]
[null,null,null,null,null,null,null,null,null,null,""]
[null,null,null,null,null,null,null,null,null,null,""]
[null,null,null,null,null,null,null,null,null,null,""]
[null,null,null,null,null,null,null,null,null,null,""]
[null,null,null,null,null,null,null,null,null,null,""]
[null,null,null,null,null,null,null,null,null,null,""]
[null,null,null,null,null,null,null,null,null,null,""]
[null,null,null,null,null,null,null,null,null,null,""]
[null,null,null,null,null,null,null,null,null,null,""]
[null,null,null,null,null,null,null,null,null,null,""]
[null,null,null,null,null,null,null,null,null,null,""]
[null,null,null,null,null,null,null,null,null,null,""]
[null,null,null,null,null,null,null,null,null,null,""]
[null,null,null,null,null,null,null,null,null,null,""]
[null,null,null,null,null,null,null,null,null,null,""]
[null,null,null,null,null,null,null,null,null,null,""]
[null,null,null,null,null,null,null,null,null,null,""]
[null,null,null,null,null,null,null,null,null,null,""]
[null,null,null,null,null,null,null,null,null,null,""]
[null,null,null,null,null,null,null,null,null,null,""]
[null,null,null,null,null,null,null,null,null,null,""]
[null,null,null,null,null,null,null,null,null,null,""]
[null,null,null,null,null,null,null,null,null,null,""]
[null,null,null,null,null,null,null,null,null,null,""]
[null,null,null,null,null,null,null,null,null,null,""]
[null,null,null,null,null,null,null,null,null,null,""]
[null,null,null,null,null,null,null,null,null,null,""]
[null,null,null,null,null,null,null,null,null,null,""]
[null,null,null,null,null,null,null,null,null,null,""]
[null,null,null,null,null,null,null,null,null,null,""]
[null,null,null,null,null,null,null,null,null,null,""]
[null,null,null,null,null,null,null,null,null,null,""]
[null,null,null,null,null,null,null,null,null,null,""]
[null,null,null,null,null,null,null,null,null,null,""]
[null,null,null,null,null,null,null,null,null,null,""]
[null,null,null,null,null,null,null,null,null,null,""]
[null,null,null,null,null,null,null,null,null,null,""]
[null,null,null,null,null,null,null,null,null,null,""]
[null,null,null,null,null,null,null,null,null,null,""]
[null,null,null,null,null,null,null,null,null,null,""]
[null,null,null,null,null,null,null,null,null,null,""]
[null,null,null,null,null,null,null,null,null,null,""]
[null,null,null,null,null,null,null,null,null,null,""]
[null,null,null,null,null,null,null,null,null,null,""]
[null,null,null,null,null,null,null,null,null,null,""]
[null,null,null,null,null,null,null,null,null,null,{"$f":"IF(J517=TRUE,\"CLOSE\",\"\")","v":""}]
[null,null,null,null,null,null,null,null,null,null,""]
[null,null,null,null,null,null,null,null,null,null,""]
[null,null,null,null,null,null,null,null,null,null,""]
[null,null,null,null,null,null,null,null,null,null,""]
[null,null,null,null,null,null,null,null,null,null,""]
[null,null,null,null,null,null,null,null,null,null,""]
[null,null,null,null,null,null,null,null,null,null,""]
[null,null,null,null,null,null,null,null,null,null,""]
[null,null,null,null,null,null,null,null,null,null,""]
[null,null,null,null,null,null,null,null,null,null,""]
[null,null,null,null,null,null,null,null,null,null,""]
[null,null,null,null,null,null,null,null,null,null,""]
[null,null,null,null,null,null,null,null,null,null,""]
[null,null,null,null,null,null,null,null,null,null,""]
[null,null,null,null,null,null,null,null,null,null,""]
[null,null,null,null,null,null,null,null,null,null,""]
[null,null,null,null,null,null,null,null,null,null,""]
[null,null,null,null,null,null,null,null,null,null,""]
[null,null,null,null,null,null,null,null,null,null,""]
[null,null,null,null,null,null,null,null,null,null,""]
[null,null,null,null,null,null,null,null,null,null,""]
[null,null,null,null,null,null,null,null,null,null,""]
[null,null,null,null,null,null,null,null,null,null,""]
[null,null,null,null,null,null,null,null,null,null,""]
[null,null,null,null,null,null,null,null,null,null,""]
[null,null,null,null,null,null,null,null,null,null,""]
[null,null,null,null,null,null,null,null,null,null,""]
[null,null,null,null,null,null,null,null,null,null,""]
[null,null,null,null,null,null,null,null,null,null,""]
[null,null,null,null,null,null,null,null,null,null,""]
[null,null,null,null,null,null,null,null,null,null,""]
[null,null,null,null,null,null,null,null,null,null,""]
[null,null,null,null,null,null,null,null,null,null,""]
[null,null,null,null,null,null,null,null,null,null,""]
[null,null,null,null,null,null,null,null,null,null,""]
[null,null,null,null,null,null,null,null,null,null,""]
[null,null,null,null,null,null,null,null,null,null,""]
[null,null,null,null,null,null,null,null,null,null,""]
[null,null,null,null,null,null,null,null,null,null,""]
[null,null,null,null,null,null,null,null,null,null,""]
[null,null,null,null,null,null,null,null,null,null,""]
[null,null,null,null,null,null,null,null,null,null,""]
[null,null,null,null,null,null,null,null,null,null,""]
[null,null,null,null,null,null,null,null,null,null,""]
[null,null,null,null,null,null,null,null,null,null,""]
[null,null,null,null,null,null,null,null,null,null,""]
[null,null,null,null,null,null,null,null,null,null,""]
[null,null,null,null,null,null,null,null,null,null,""]
[null,null,null,null,null,null,null,null,null,null,""]
[null,null,null,null,null,null,null,null,null,null,""]
[null,null,null,null,null,null,null,null,null,null,""]
[null,null,null,null,null,null,null,null,null,null,""]
[null,null,null,null,null,null,null,null,null,null,""]
[null,null,null,null,null,null,null,null,null,null,""]
[null,null,null,null,null,null,null,null,null,null,""]
[null,null,null,null,null,null,null,null,null,null,""]
[null,null,null,null,null,null,null,null,null,null,""]
[null,null,null,null,null,null,null,null,null,null,""]
[null,null,null,null,null,null,null,null,null,null,""]
[null,null,null,null,null,null,null,null,null,null,""]
[null,null,null,null,null,null,null,null,null,null,""]
[null,null,null,null,null,null,null,null,null,null,""]
[null,null,null,null,null,null,null,null,null,null,""]
[null,null,null,null,null,null,null,null,null,null,{"$f":"IF(J581=TRUE,\"CLOSE\",\"\")","v":""}]
[null,null,null,null,null,null,null,null,null,null,""]
[null,null,null,null,null,null,null,null,null,null,""]
[null,null,null,null,null,null,null,null,null,null,""]
[null,null,null,null,null,null,null,null,null,null,""]
[null,null,null,null,null,null,null,null,null,null,""]
[null,null,null,null,null,null,null,null,null,null,""]
[null,null,null,null,null,null,null,null,null,null,""]
[null,null,null,null,null,null,null,null,null,null,""]
[null,null,null,null,null,null,null,null,null,null,""]
[null,null,null,null,null,null,null,null,null,null,""]
[null,null,null,null,null,null,null,null,null,null,""]
[null,null,null,null,null,null,null,null,null,null,""]
[null,null,null,null,null,null,null,null,null,null,""]
[null,null,null,null,null,null,null,null,null,null,""]
[null,null,null,null,null,null,null,null,null,null,""]
[null,null,null,null,null,null,null,null,null,null,""]
[null,null,null,null,null,null,null,null,null,null,""]
[null,null,null,null,null,null,null,null,null,null,""]
[null,null,null,null,null,null,null,null,null,null,""]
[null,null,null,null,null,null,null,null,null,null,""]
[null,null,null,null,null,null,null,null,null,null,""]
[null,null,null,null,null,null,null,null,null,null,""]
[null,null,null,null,null,null,null,null,null,null,""]
[null,null,null,null,null,null,null,null,null,null,""]
[null,null,null,null,null,null,null,null,null,null,""]
[null,null,null,null,null,null,null,null,null,null,""]
[null,null,null,null,null,null,null,null,null,null,""]
[null,null,null,null,null,null,null,null,null,null,""]
[null,null,null,null,null,null,null,null,null,null,""]
[null,null,null,null,null,null,null,null,null,null,""]
[null,null,null,null,null,null,null,null,null,null,""]
[null,null,null,null,null,null,null,null,null,null,""]
[null,null,null,null,null,null,null,null,null,null,""]
[null,null,null,null,null,null,null,null,null,null,""]
[null,null,null,null,null,null,null,null,null,null,""]
[null,null,null,null,null,null,null,null,null,null,""]
[null,null,null,null,null,null,null,null,null,null,""]
[null,null,null,null,null,null,null,null,null,null,""]
[null,null,null,null,null,null,null,null,null,null,""]
[null,null,null,null,null,null,null,null,null,null,""]
[null,null,null,null,null,null,null,null,null,null,""]
[null,null,null,null,null,null,null,null,null,null,""]
[null,null,null,null,null,null,null,null,null,null,""]
[null,null,null,null,null,null,null,null,null,null,""]
[null,null,null,null,null,null,null,null,null,null,""]
[null,null,null,null,null,null,null,null,null,null,""]
[null,null,null,null,null,null,null,null,null,null,""]
[null,null,null,null,null,null,null,null,null,null,""]
[null,null,null,null,null,null,null,null,null,null,""]
[null,null,null,null,null,null,null,null,null,null,""]
[null,null,null,null,null,null,null,null,null,null,""]
[null,null,null,null,null,null,null,null,null,null,""]
[null,null,null,null,null,null,null,null,null,null,""]
[null,null,null,null,null,null,null,null,null,null,""]
[null,null,null,null,null,null,null,null,null,null,""]
[null,null,null,null,null,null,null,null,null,null,""]
[null,null,null,null,null,null,null,null,null,null,""]
[null,null,null,null,null,null,null,null,null,null,""]
[null,null,null,null,null,null,null,null,null,null,""]
[null,null,null,null,null,null,null,null,null,null,""]
[null,null,null,null,null,null,null,null,null,null,""]
[null,null,null,null,null,null,null,null,null,null,""]
[null,null,null,null,null,null,null,null,null,null,""]
[null,null,null,null,null,null,null,null,null,null,{"$f":"IF(J645=TRUE,\"CLOSE\",\"\")","v":""}]
[null,null,null,null,null,null,null,null,null,null,""]
[null,null,null,null,null,null,null,null,null,null,""]
[null,null,null,null,null,null,null,null,null,null,""]
[null,null,null,null,null,null,null,null,null,null,""]
[null,null,null,null,null,null,null,null,null,null,""]
[null,null,null,null,null,null,null,null,null,null,""]
[null,null,null,null,null,null,null,null,null,null,""]
[null,null,null,null,null,null,null,null,null,null,""]
[null,null,null,null,null,null,null,null,null,null,""]
[null,null,null,null,null,null,null,null,null,null,""]
[null,null,null,null,null,null,null,null,null,null,""]
[null,null,null,null,null,null,null,null,null,null,""]
[null,null,null,null,null,null,null,null,null,null,""]
[null,null,null,null,null,null,null,null,null,null,""]
[null,null,null,null,null,null,null,null,null,null,""]
[null,null,null,null,null,null,null,null,null,null,""]
[null,null,null,null,null,null,null,null,null,null,""]
[null,null,null,null,null,null,null,null,null,null,""]
[null,null,null,null,null,null,null,null,null,null,""]
[null,null,null,null,null,null,null,null,null,null,""]
[null,null,null,null,null,null,null,null,null,null,""]
[null,null,null,null,null,null,null,null,null,null,""]
[null,null,null,null,null,null,null,null,null,null,""]
[null,null,null,null,null,null,null,null,null,null,""]
[null,null,null,null,null,null,null,null,null,null,""]
[null,null,null,null,null,null,null,null,null,null,""]
[null,null,null,null,null,null,null,null,null,null,""]
[null,null,null,null,null,null,null,null,null,null,""]
[null,null,null,null,null,null,null,null,null,null,""]
[null,null,null,null,null,null,null,null,null,null,""]
[null,null,null,null,null,null,null,null,null,null,""]
[null,null,null,null,null,null,null,null,null,null,""]
[null,null,null,null,null,null,null,null,null,null,""]
[null,null,null,null,null,null,null,null,null,null,""]
[null,null,null,null,null,null,null,null,null,null,""]
[null,null,null,null,null,null,null,null,null,null,""]
[null,null,null,null,null,null,null,null,null,null,""]
[null,null,null,null,null,null,null,null,null,null,""]
[null,null,null,null,null,null,null,null,null,null,""]
[null,null,null,null,null,null,null,null,null,null,""]
[null,null,null,null,null,null,null,null,null,null,""]
[null,null,null,null,null,null,null,null,null,null,""]
[null,null,null,null,null,null,null,null,null,null,""]
[null,null,null,null,null,null,null,null,null,null,""]
[null,null,null,null,null,null,null,null,null,null,""]
[null,null,null,null,null,null,null,null,null,null,""]
[null,null,null,null,null,null,null,null,null,null,""]
[null,null,null,null,null,null,null,null,null,null,""]
[null,null,null,null,null,null,null,null,null,null,""]
[null,null,null,null,null,null,null,null,null,null,""]
[null,null,null,null,null,null,null,null,null,null,""]
[null,null,null,null,null,null,null,null,null,null,""]
[null,null,null,null,null,null,null,null,null,null,""]
[null,null,null,null,null,null,null,null,null,null,""]
[null,null,null,null,null,null,null,null,null,null,""]
[null,null,null,null,null,null,null,null,null,null,""]
[null,null,null,null,null,null,null,null,null,null,""]
[null,null,null,null,null,null,null,null,null,null,""]
[null,null,null,null,null,null,null,null,null,null,""]
[null,null,null,null,null,null,null,null,null,null,""]
[null,null,null,null,null,null,null,null,null,null,""]
[null,null,null,null,null,null,null,null,null,null,""]
[null,null,null,null,null,null,null,null,null,null,""]
[null,null,null,null,null,null,null,null,null,null,{"$f":"IF(J709=TRUE,\"CLOSE\",\"\")","v":""}]
[null,null,null,null,null,null,null,null,null,null,""]
[null,null,null,null,null,null,null,null,null,null,""]
[null,null,null,null,null,null,null,null,null,null,""]
[null,null,null,null,null,null,null,null,null,null,""]
[null,null,null,null,null,null,null,null,null,null,""]
[null,null,null,null,null,null,null,null,null,null,""]
[null,null,null,null,null,null,null,null,null,null,""]
[null,null,null,null,null,null,null,null,null,null,""]
[null,null,null,null,null,null,null,null,null,null,""]
[null,null,null,null,null,null,null,null,null,null,""]
[null,null,null,null,null,null,null,null,null,null,""]
[null,null,null,null,null,null,null,null,null,null,""]
[null,null,null,null,null,null,null,null,null,null,""]
[null,null,null,null,null,null,null,null,null,null,""]
[null,null,null,null,null,null,null,null,null,null,""]
[null,null,null,null,null,null,null,null,null,null,""]
[null,null,null,null,null,null,null,null,null,null,""]
[null,null,null,null,null,null,null,null,null,null,""]
[null,null,null,null,null,null,null,null,null,null,""]
[null,null,null,null,null,null,null,null,null,null,""]
[null,null,null,null,null,null,null,null,null,null,""]
[null,null,null,null,null,null,null,null,null,null,""]
[null,null,null,null,null,null,null,null,null,null,""]
[null,null,null,null,null,null,null,null,null,null,""]
[null,null,null,null,null,null,null,null,null,null,""]
[null,null,null,null,null,null,null,null,null,null,""]
[null,null,null,null,null,null,null,null,null,null,""]
[null,null,null,null,null,null,null,null,null,null,""]
[null,null,null,null,null,null,null,null,null,null,""]
[null,null,null,null,null,null,null,null,null,null,""]
[null,null,null,null,null,null,null,null,null,null,""]
[null,null,null,null,null,null,null,null,null,null,""]
[null,null,null,null,null,null,null,null,null,null,""]
[null,null,null,null,null,null,null,null,null,null,""]
[null,null,null,null,null,null,null,null,null,null,""]
[null,null,null,null,null,null,null,null,null,null,""]
[null,null,null,null,null,null,null,null,null,null,""]
[null,null,null,null,null,null,null,null,null,null,""]
[null,null,null,null,null,null,null,null,null,null,""]
[null,null,null,null,null,null,null,null,null,null,""]
[null,null,null,null,null,null,null,null,null,null,""]
[null,null,null,null,null,null,null,null,null,null,""]
[null,null,null,null,null,null,null,null,null,null,""]
[null,null,null,null,null,null,null,null,null,null,""]
[null,null,null,null,null,null,null,null,null,null,""]
[null,null,null,null,null,null,null,null,null,null,""]
[null,null,null,null,null,null,null,null,null,null,""]
[null,null,null,null,null,null,null,null,null,null,""]
[null,null,null,null,null,null,null,null,null,null,""]
[null,null,null,null,null,null,null,null,null,null,""]
[null,null,null,null,null,null,null,null,null,null,""]
[null,null,null,null,null,null,null,null,null,null,""]
[null,null,null,null,null,null,null,null,null,null,""]
[null,null,null,null,null,null,null,null,null,null,""]
[null,null,null,null,null,null,null,null,null,null,""]
[null,null,null,null,null,null,null,null,null,null,""]
[null,null,null,null,null,null,null,null,null,null,""]
[null,null,null,null,null,null,null,null,null,null,""]
[null,null,null,null,null,null,null,null,null,null,""]
[null,null,null,null,null,null,null,null,null,null,""]
[null,null,null,null,null,null,null,null,null,null,""]
[null,null,null,null,null,null,null,null,null,null,""]
[null,null,null,null,null,null,null,null,null,null,""]
[null,null,null,null,null,null,null,null,null,null,{"$f":"IF(J773=TRUE,\"CLOSE\",\"\")","v":""}]
[null,null,null,null,null,null,null,null,null,null,""]
[null,null,null,null,null,null,null,null,null,null,""]
[null,null,null,null,null,null,null,null,null,null,""]
[null,null,null,null,null,null,null,null,null,null,""]
[null,null,null,null,null,null,null,null,null,null,""]
[null,null,null,null,null,null,null,null,null,null,""]
[null,null,null,null,null,null,null,null,null,null,""]
[null,null,null,null,null,null,null,null,null,null,""]
[null,null,null,null,null,null,null,null,null,null,""]
[null,null,null,null,null,null,null,null,null,null,""]
[null,null,null,null,null,null,null,null,null,null,""]
[null,null,null,null,null,null,null,null,null,null,""]
[null,null,null,null,null,null,null,null,null,null,""]
[null,null,null,null,null,null,null,null,null,null,""]
[null,null,null,null,null,null,null,null,null,null,""]
[null,null,null,null,null,null,null,null,null,null,""]
[null,null,null,null,null,null,null,null,null,null,""]
[null,null,null,null,null,null,null,null,null,null,""]
[null,null,null,null,null,null,null,null,null,null,""]
[null,null,null,null,null,null,null,null,null,null,""]
[null,null,null,null,null,null,null,null,null,null,""]
[null,null,null,null,null,null,null,null,null,null,""]
[null,null,null,null,null,null,null,null,null,null,""]
[null,null,null,null,null,null,null,null,null,null,""]
[null,null,null,null,null,null,null,null,null,null,""]
[null,null,null,null,null,null,null,null,null,null,""]
[null,null,null,null,null,null,null,null,null,null,""]
[null,null,null,null,null,null,null,null,null,null,""]
[null,null,null,null,null,null,null,null,null,null,""]
[null,null,null,null,null,null,null,null,null,null,""]
[null,null,null,null,null,null,null,null,null,null,""]
[null,null,null,null,null,null,null,null,null,null,""]
[null,null,null,null,null,null,null,null,null,null,""]
[null,null,null,null,null,null,null,null,null,null,""]
[null,null,null,null,null,null,null,null,null,null,""]
[null,null,null,null,null,null,null,null,null,null,""]
[null,null,null,null,null,null,null,null,null,null,""]
[null,null,null,null,null,null,null,null,null,null,""]
[null,null,null,null,null,null,null,null,null,null,""]
[null,null,null,null,null,null,null,null,null,null,""]
[null,null,null,null,null,null,null,null,null,null,""]
[null,null,null,null,null,null,null,null,null,null,""]
[null,null,null,null,null,null,null,null,null,null,""]
[null,null,null,null,null,null,null,null,null,null,""]
[null,null,null,null,null,null,null,null,null,null,""]
[null,null,null,null,null,null,null,null,null,null,""]
[null,null,null,null,null,null,null,null,null,null,""]
[null,null,null,null,null,null,null,null,null,null,""]
[null,null,null,null,null,null,null,null,null,null,""]
[null,null,null,null,null,null,null,null,null,null,""]
[null,null,null,null,null,null,null,null,null,null,""]
[null,null,null,null,null,null,null,null,null,null,""]
[null,null,null,null,null,null,null,null,null,null,""]
[null,null,null,null,null,null,null,null,null,null,""]
[null,null,null,null,null,null,null,null,null,null,""]
[null,null,null,null,null,null,null,null,null,null,""]
[null,null,null,null,null,null,null,null,null,null,""]
[null,null,null,null,null,null,null,null,null,null,""]
[null,null,null,null,null,null,null,null,null,null,""]
[null,null,null,null,null,null,null,null,null,null,""]
[null,null,null,null,null,null,null,null,null,null,""]
[null,null,null,null,null,null,null,null,null,null,""]
[null,null,null,null,null,null,null,null,null,null,""]
[null,null,null,null,null,null,null,null,null,null,{"$f":"IF(J837=TRUE,\"CLOSE\",\"\")","v":""}]
[null,null,null,null,null,null,null,null,null,null,""]
[null,null,null,null,null,null,null,null,null,null,""]
[null,null,null,null,null,null,null,null,null,null,""]
[null,null,null,null,null,null,null,null,null,null,""]
[null,null,null,null,null,null,null,null,null,null,""]
[null,null,null,null,null,null,null,null,null,null,""]
[null,null,null,null,null,null,null,null,null,null,""]
[null,null,null,null,null,null,null,null,null,null,""]
[null,null,null,null,null,null,null,null,null,null,""]
[null,null,null,null,null,null,null,null,null,null,""]
[null,null,null,null,null,null,null,null,null,null,""]
[null,null,null,null,null,null,null,null,null,null,""]
[null,null,null,null,null,null,null,null,null,null,""]
[null,null,null,null,null,null,null,null,null,null,""]
[null,null,null,null,null,null,null,null,null,null,""]
[null,null,null,null,null,null,null,null,null,null,""]
[null,null,null,null,null,null,null,null,null,null,""]
[null,null,null,null,null,null,null,null,null,null,""]
[null,null,null,null,null,null,null,null,null,null,""]
[null,null,null,null,null,null,null,null,null,null,""]
[null,null,null,null,null,null,null,null,null,null,""]
[null,null,null,null,null,null,null,null,null,null,""]
[null,null,null,null,null,null,null,null,null,null,""]
[null,null,null,null,null,null,null,null,null,null,""]
[null,null,null,null,null,null,null,null,null,null,""]
[null,null,null,null,null,null,null,null,null,null,""]
[null,null,null,null,null,null,null,null,null,null,""]
[null,null,null,null,null,null,null,null,null,null,""]
[null,null,null,null,null,null,null,null,null,null,""]
[null,null,null,null,null,null,null,null,null,null,""]
[null,null,null,null,null,null,null,null,null,null,""]
[null,null,null,null,null,null,null,null,null,null,""]
[null,null,null,null,null,null,null,null,null,null,""]
[null,null,null,null,null,null,null,null,null,null,""]
[null,null,null,null,null,null,null,null,null,null,""]
[null,null,null,null,null,null,null,null,null,null,""]
[null,null,null,null,null,null,null,null,null,null,""]
[null,null,null,null,null,null,null,null,null,null,""]
[null,null,null,null,null,null,null,null,null,null,""]
[null,null,null,null,null,null,null,null,null,null,""]
[null,null,null,null,null,null,null,null,null,null,""]
[null,null,null,null,null,null,null,null,null,null,""]
[null,null,null,null,null,null,null,null,null,null,""]
[null,null,null,null,null,null,null,null,null,null,""]
[null,null,null,null,null,null,null,null,null,null,""]
[null,null,null,null,null,null,null,null,null,null,""]
[null,null,null,null,null,null,null,null,null,null,""]
[null,null,null,null,null,null,null,null,null,null,""]
[null,null,null,null,null,null,null,null,null,null,""]
[null,null,null,null,null,null,null,null,null,null,""]
[null,null,null,null,null,null,null,null,null,null,""]
[null,null,null,null,null,null,null,null,null,null,""]
[null,null,null,null,null,null,null,null,null,null,""]
[null,null,null,null,null,null,null,null,null,null,""]
[null,null,null,null,null,null,null,null,null,null,""]
[null,null,null,null,null,null,null,null,null,null,""]
[null,null,null,null,null,null,null,null,null,null,""]
[null,null,null,null,null,null,null,null,null,null,""]
[null,null,null,null,null,null,null,null,null,null,""]
[null,null,null,null,null,null,null,null,null,null,""]
[null,null,null,null,null,null,null,null,null,null,""]
[null,null,null,null,null,null,null,null,null,null,""]
[null,null,null,null,null,null,null,null,null,null,""]
[null,null,null,null,null,null,null,null,null,null,{"$f":"IF(J901=TRUE,\"CLOSE\",\"\")","v":""}]
[null,null,null,null,null,null,null,null,null,null,""]
[null,null,null,null,null,null,null,null,null,null,""]
[null,null,null,null,null,null,null,null,null,null,""]
[null,null,null,null,null,null,null,null,null,null,""]
[null,null,null,null,null,null,null,null,null,null,""]
[null,null,null,null,null,null,null,null,null,null,""]
[null,null,null,null,null,null,null,null,null,null,""]
[null,null,null,null,null,null,null,null,null,null,""]
[null,null,null,null,null,null,null,null,null,null,""]
[null,null,null,null,null,null,null,null,null,null,""]
[null,null,null,null,null,null,null,null,null,null,""]
[null,null,null,null,null,null,null,null,null,null,""]
[null,null,null,null,null,null,null,null,null,null,""]
[null,null,null,null,null,null,null,null,null,null,""]
[null,null,null,null,null,null,null,null,null,null,""]
[null,null,null,null,null,null,null,null,null,null,""]
[null,null,null,null,null,null,null,null,null,null,""]
[null,null,null,null,null,null,null,null,null,null,""]
[null,null,null,null,null,null,null,null,null,null,""]
[null,null,null,null,null,null,null,null,null,null,""]
[null,null,null,null,null,null,null,null,null,null,""]
[null,null,null,null,null,null,null,null,null,null,""]
[null,null,null,null,null,null,null,null,null,null,""]
[null,null,null,null,null,null,null,null,null,null,""]
[null,null,null,null,null,null,null,null,null,null,""]
[null,null,null,null,null,null,null,null,null,null,""]
[null,null,null,null,null,null,null,null,null,null,""]
[null,null,null,null,null,null,null,null,null,null,""]
[null,null,null,null,null,null,null,null,null,null,""]
[null,null,null,null,null,null,null,null,null,null,""]
[null,null,null,null,null,null,null,null,null,null,""]
[null,null,null,null,null,null,null,null,null,null,""]
[null,null,null,null,null,null,null,null,null,null,""]
[null,null,null,null,null,null,null,null,null,null,""]
[null,null,null,null,null,null,null,null,null,null,""]
[null,null,null,null,null,null,null,null,null,null,""]
[null,null,null,null,null,null,null,null,null,null,""]
[null,null,null,null,null,null,null,null,null,null,""]
[null,null,null,null,null,null,null,null,null,null,""]
[null,null,null,null,null,null,null,null,null,null,""]
[null,null,null,null,null,null,null,null,null,null,""]
[null,null,null,null,null,null,null,null,null,null,""]
[null,null,null,null,null,null,null,null,null,null,""]
[null,null,null,null,null,null,null,null,null,null,""]
[null,null,null,null,null,null,null,null,null,null,""]
[null,null,null,null,null,null,null,null,null,null,""]
[null,null,null,null,null,null,null,null,null,null,""]
[null,null,null,null,null,null,null,null,null,null,""]
[null,null,null,null,null,null,null,null,null,null,""]
[null,null,null,null,null,null,null,null,null,null,""]
[null,null,null,null,null,null,null,null,null,null,""]
[null,null,null,null,null,null,null,null,null,null,""]
[null,null,null,null,null,null,null,null,null,null,""]
[null,null,null,null,null,null,null,null,null,null,""]
[null,null,null,null,null,null,null,null,null,null,""]
[null,null,null,null,null,null,null,null,null,null,""]
[null,null,null,null,null,null,null,null,null,null,""]
[null,null,null,null,null,null,null,null,null,null,""]
[null,null,null,null,null,null,null,null,null,null,""]
[null,null,null,null,null,null,null,null,null,null,""]
[null,null,null,null,null,null,null,null,null,null,""]
[null,null,null,null,null,null,null,null,null,null,""]
[null,null,null,null,null,null,null,null,null,null,""]
[null,null,null,null,null,null,null,null,null,null,{"$f":"IF(J965=TRUE,\"CLOSE\",\"\")","v":""}]
[null,null,null,null,null,null,null,null,null,null,""]
[null,null,null,null,null,null,null,null,null,null,""]
[null,null,null,null,null,null,null,null,null,null,""]
[null,null,null,null,null,null,null,null,null,null,""]
[null,null,null,null,null,null,null,null,null,null,""]
[null,null,null,null,null,null,null,null,null,null,""]
[null,null,null,null,null,null,null,null,null,null,""]
[null,null,null,null,null,null,null,null,null,null,""]
[null,null,null,null,null,null,null,null,null,null,""]
[null,null,null,null,null,null,null,null,null,null,""]
[null,null,null,null,null,null,null,null,null,null,""]
[null,null,null,null,null,null,null,null,null,null,""]
[null,null,null,null,null,null,null,null,null,null,""]
[null,null,null,null,null,null,null,null,null,null,""]
[null,null,null,null,null,null,null,null,null,null,""]
[null,null,null,null,null,null,null,null,null,null,""]
[null,null,null,null,null,null,null,null,null,null,""]
[null,null,null,null,null,null,null,null,null,null,""]
[null,null,null,null,null,null,null,null,null,null,""]
[null,null,null,null,null,null,null,null,null,null,""]
[null,null,null,null,null,null,null,null,null,null,""]
[null,null,null,null,null,null,null,null,null,null,""]
[null,null,null,null,null,null,null,null,null,null,""]
[null,null,null,null,null,null,null,null,null,null,""]
[null,null,null,null,null,null,null,null,null,null,""]
[null,null,null,null,null,null,null,null,null,null,""]
[null,null,null,null,null,null,null,null,null,null,""]
[null,null,null,null,null,null,null,null,null,null,""]
[null,null,null,null,null,null,null,null,null,null,""]
[null,null,null,null,null,null,null,null,null,null,""]
[null,null,null,null,null,null,null,null,null,null,""]
[null,null,null,null,null,null,null,null,null,null,""]
[null,null,null,null,null,null,null,null,null,null,""]
[null,null,null,null,null,null,null,null,null,null,""]
[null,null,null,null,null,null,null,null,null,null,""]
[null,null,null,null,null,null,null,null,null,null,""]
[null,null,null,null,null,null,null,null,null,null,""]
[null,null,null,null,null,null,null,null,null,null,""]

{"sheet":"account","index":3,"n_rows":9,"n_cols":10,"rows_kept":9,"cut":false,"hidden":false,"merged":[]}
["Account overview for drop-down selection. Works for up to 5 accounts.",null,null,null,null,null,null,"ClientKey and account details."]
[{"$f":"_xll.OpenAPIGetAccountList()","v":"AccountId"},"AccountKey","AccountGroupName","AccountGroupKey","ClientId","ClientKey"]
["9073876","X1JlUyeXTMK3mBxzd-D2UA=="," ","X1JlUyeXTMK3mBxzd-D2UA==","9073876","X1JlUyeXTMK3mBxzd-D2UA==",null,"ClientKey",{"$f":"_xll.OpenAPIGetClientKey()","v":"X1JlUyeXTMK3mBxzd-D2UA=="}]
["9073876_AUD","Nr0wsPGUYZCD4yIkFDGa4A=="," ","X1JlUyeXTMK3mBxzd-D2UA==","9073876","X1JlUyeXTMK3mBxzd-D2UA==",null,"Selected AccountKey",{"$f":"VLOOKUP(Trade!B7,A3:B7,2,FALSE)","v":"Nr0wsPGUYZCD4yIkFDGa4A=="}]
["9073876_DKK","KMgyuRfY-yDoSzDmdK-HZQ=="," ","X1JlUyeXTMK3mBxzd-D2UA==","9073876","X1JlUyeXTMK3mBxzd-D2UA=="]
["9073876_JPY","MXt3pDqb5VEujcdqBV1cmQ=="," ","X1JlUyeXTMK3mBxzd-D2UA==","9073876","X1JlUyeXTMK3mBxzd-D2UA==",null,null,{"$f":"_xll.OpenAPIGetAutoResize(\"/openapi/port/v1/balances/?AccountKey=\"&I4&\"&ClientKey=\"&I3,\"CashBalance,Currency\",TRUE)","v":"CashBalance"},"Currency"]
["9073876_USD","hR3h0OwLknemBKHq6khSww=="," ","X1JlUyeXTMK3mBxzd-D2UA==","9073876","X1JlUyeXTMK3mBxzd-D2UA==",null,"Account balance",93326.99,"AUD"]
[null,null,null,null,null,null,null,"TransactionsNotBooked",{"$f":"_xll.OpenAPIGet(\"/openapi/port/v1/balances/?ClientKey=\"&I3&\"&AccountKey=\"&I4,\"TransactionsNotBooked\")","v":1678.48},{"$f":"J7","v":"AUD"}]
[null,null,null,null,null,null,null,"Cash available",{"$f":"I7+I8","v":95005.47},{"$f":"J8","v":"AUD"}]

{"sheet":"config","index":4,"n_rows":11,"n_cols":2,"rows_kept":11,"cut":false,"hidden":false,"merged":[]}
["AssetType","Results"]
["Bond",1]
["CfdIndexOption",2]
["CfdOnFutures",3]
["CfdOnIndex",4]
["CfdOnStock",5]
["FxSpot",6]
["ManagedFund",7]
["MutualFund",8]
["Stock",9]
["StockIndex",10]